bitfinex-derivatives/quotes_ETHF0:USTF0_20251210
["timestamp","ask_amount","ask_price","bid_price","bid_amount"]
[1765395889826,3.2078,3369.1,3367.2,3.2078]
[1765395890028,3.2078,3368.0,3367.6,0.14846]
[1765395890632,3.2078,3368.0,3367.1,0.14848]
[1765395890818,3.2078,3367.4,3367.2,0.00445395]
[1765395892925,0.00445395,3367.6,3367.2,0.15292395]
[1765395893123,0.00445395,3367.6,3367.2,3.21225395]
[1765395893831,0.00445395,3367.6,3367.5,0.14846]
[1765395895318,3.2078,3367.9,3367.2,0.00445395]
[1765395895319,3.2078,3367.9,3367.7,0.14845]
[1765395895929,3.2078,3367.9,3367.8,0.14845]
[1765395897720,3.2078,3367.9,3367.2,0.00445395]
[1765395898028,3.2078,3367.3,3367.2,0.00445395]
[1765395900229,9.2078,3367.3,3364.9,4.0387457]
[1765395900431,3.2078,3365.6,3364.9,1.07026899]
[1765395900629,3.2078,3366.0,3365.9,0.14853]
[1765395901126,3.2078,3366.0,3364.8,3.2078]
[1765395901327,0.00445395,3365.7,3365.6,0.14854]
[1765395901533,0.00445395,3365.7,3365.4,3.2078]
[1765395901534,0.00369653,3366.0,3365.9,0.14853]
[1765395901723,3.21149653,3366.0,3365.9,0.14853]
[1765395902126,3.2078,3367.2,3367.1,0.14848]
[1765395902331,3.2078,3367.2,3366.3,0.14851]
[1765395902531,3.2078,3366.8,3366.5,0.1485]
[1765395902725,3.2078,3366.8,3366.6,0.1485]
[1765395902925,3.2078,3366.8,3366.7,0.1485]
[1765395903122,3.21121696,3366.8,3366.7,0.1485]
[1765395903530,0.00341696,3366.8,3366.7,0.1485]
[1765395903828,0.1484,3368.8,3366.4,3.21225395]
[1765395903829,3.2078,3368.5,3368.0,0.14844]
[1765395904037,0.14837,3369.5,3368.0,0.14844]
[1765395904038,3.2078,3368.1,3368.0,0.14844]
[1765395904230,3.2078,3368.5,3368.4,0.14842]
[1765395904529,3.2078,3368.5,3367.4,3.2078]
[1765395904731,3.2078,3367.8,3367.6,0.15291395]
[1765395904931,3.21074144,3368.3,3367.6,0.00445395]
[1765395905127,3.21074144,3368.3,3367.9,0.14844]
[1765395905333,3.21074144,3368.3,3368.0,0.14844]
[1765395905532,3.21074144,3368.3,3368.2,0.14843]
[1765395905738,0.00294144,3368.3,3368.2,0.14843]
[1765395906232,3.2078,3369.1,3369.0,0.1484]
[1765395906830,3.2078,3370.1,3369.0,6.0]
[1765395907033,3.2078,3370.1,3369.0,0.25984758]
[1765395907334,2.88086,3370.6,3370.5,0.14833]
[1765395907633,3.2078,3372.0,3370.7,0.14832]
[1765395907936,2.96847671,3372.5,3370.2,0.00445395]
[1765395907937,8.5,3372.8,3370.2,0.00445395]
[1765395908432,8.50324296,3372.8,3370.2,0.00665076]
[1765395908736,0.14826,3372.2,3370.2,0.00665076]
[1765395909135,3.2078,3370.9,3370.2,0.15499076]
[1765395909332,3.2078,3370.9,3370.2,0.00665076]
[1765395909529,3.2078,3371.7,3370.4,2.96847671]
[1765395909733,8.5,3372.7,3371.4,0.14829]
[1765395909934,3.2078,3371.9,3371.6,0.14828]
[1765395910131,3.2078,3372.5,3371.3,2.96847671]
[1765395910436,3.2078,3371.6,3370.4,3.2078]
[1765395910637,3.2078,3371.6,3370.2,0.00665076]
[1765395910835,3.2078,3371.9,3370.6,3.2078]
[1765395911035,3.2078,3371.5,3371.4,0.14829]
[1765395911248,3.2078,3371.5,3370.4,0.14833]
[1765395911434,3.2078,3371.4,3370.9,0.14831]
[1765395911948,3.2078,3371.4,3371.3,0.14829]
[1765395912849,3.2078,3372.0,3371.8,0.14827]
[1765395913143,3.2078,3372.0,3371.6,0.00445395]
[1765395914134,3.2078,3372.4,3371.6,3.21225395]
[1765395914338,3.2078,3372.4,3371.6,0.00445395]
[1765395914539,3.2078,3372.4,3371.9,0.14827]
[1765395915236,3.2078,3372.4,3371.6,0.00445395]
[1765395915535,3.2078,3372.4,3370.9,3.35611]
[1765395915536,3.2078,3372.3,3370.9,3.2078]
[1765395915843,3.2078,3371.0,3370.5,0.14832]
[1765395916047,3.2078,3371.0,3370.2,0.00219681]
[1765395916341,3.2078,3371.4,3370.5,3.2078]
[1765395916546,3.2078,3371.4,3371.3,0.14829]
[1765395916841,3.2078,3371.4,3370.7,0.14832]
[1765395917042,3.2078,3371.4,3371.3,0.14829]
[1765395917841,0.00445395,3371.7,3371.3,0.14829]
[1765395918042,0.00445395,3371.7,3371.6,0.14828]
[1765395918241,0.00445395,3371.7,3371.5,3.2078]
[1765395918242,3.2078,3372.3,3372.0,0.14826]
[1765395918538,3.2078,3372.3,3370.6,0.00445395]
[1765395918745,3.2078,3371.7,3371.5,0.14828]
[1765395919642,3.2078,3371.7,3371.6,0.14828]
[1765395920346,3.21104296,3372.8,3372.0,0.14826]
[1765395920534,3.21104296,3372.8,3372.7,0.14823]
[1765395920736,0.00324296,3372.8,3372.7,0.15120988]
[1765395921151,6.74815866,3375.4,3372.7,0.15120988]
[1765395921152,3.2078,3374.2,3374.1,0.14817]
[1765395921545,8.30542605,3376.5,3374.8,0.14814]
[1765395921546,3.2078,3375.1,3374.8,0.14814]
[1765395921936,3.2078,3375.1,3374.3,0.14816]
[1765395922137,3.2078,3375.0,3373.8,0.00444675]
[1765395922344,0.00344587,3375.1,3373.8,0.00444675]
[1765395922345,3.2078,3374.5,3374.4,0.14816]
[1765395922544,3.2078,3374.9,3374.4,0.14816]
[1765395922744,3.2078,3374.5,3374.4,0.14816]
[1765395922943,3.2078,3374.9,3373.8,0.00444675]
[1765395923242,0.00344587,3375.1,3373.8,0.00444675]
[1765395923243,3.2078,3374.4,3373.8,0.00444675]
[1765395923438,3.2078,3374.8,3374.4,0.14815]
[1765395923644,3.2078,3374.8,3373.8,0.00444675]
[1765395923645,3.2078,3374.8,3374.7,0.14814]
[1765395923841,0.00344587,3375.1,3375.0,0.14813]
[1765395925247,6.44900866,3378.3,3377.6,3.2078]
[1765395925547,3.2078,3380.6,3378.4,0.14798]
[1765395925763,4.4432,3379.9,3379.4,3.2078]
[1765395926046,4.4432,3379.9,3379.5,3.2078]
[1765395926252,6.0,3379.8,3379.5,3.210829]
[1765395926557,6.0,3379.8,3379.6,0.14793]
[1765395926846,4.4432,3379.6,3378.7,3.2078]
[1765395927050,3.2078,3379.6,3378.7,3.2078]
[1765395927351,4.4432,3378.8,3378.6,0.14797]
[1765395927847,2.78473091,3378.7,3378.6,0.14797]
[1765395928046,0.00439394,3379.0,3378.6,3.21032426]
[1765395928347,0.00439394,3379.0,3378.9,0.14796]
[1765395929953,7.65539394,3379.0,3377.8,0.14801]
[1765395930160,3.2078,3378.1,3377.7,3.2078]
[1765395930453,4.4432,3377.8,3377.7,3.2078]
[1765395930653,4.4432,3377.8,3377.1,3.2078]
[1765395930851,11.8,3378.9,3377.1,3.2078]
[1765395930852,3.2078,3378.4,3377.1,3.2078]
[1765395931047,4.4432,3377.2,3376.2,3.2078]
[1765395931248,3.2078,3376.7,3376.4,0.00444009]
[1765395931847,3.2078,3376.6,3375.8,3.2078]
[1765395932147,0.00336201,3376.6,3376.3,3.2078]
[1765395932344,0.00336201,3376.6,3375.8,3.35847159]
[1765395932548,3.21116201,3376.6,3375.8,3.35847159]
[1765395932751,3.2078,3376.2,3375.8,0.00258159]
[1765395933053,3.2078,3376.2,3375.1,3.2078]
[1765395933054,3.2078,3376.2,3374.7,3.2078]
[1765395933350,3.2078,3375.9,3375.1,3.2078]
[1765395933554,4.44764009,3376.3,3375.6,3.2078]
[1765395933744,3.2078,3376.2,3375.6,3.2078]
[1765395933948,4.4432,3375.8,3375.6,3.35919932]
[1765395934152,4.4432,3375.8,3375.6,3.36363941]
[1765395934353,0.00444009,3376.3,3375.6,3.21553941]
[1765395934550,4.4432,3376.2,3376.0,3.2078]
[1765395935257,3.2078,3376.1,3374.9,3.2078]
[1765395935447,3.2078,3375.7,3374.9,3.2078]
[1765395935956,3.2078,3375.3,3374.5,3.35595]
[1765395936350,3.2078,3375.3,3374.6,0.00444009]
[1765395936750,9.2078,3375.3,3374.6,0.00444009]
[1765395937053,3.2078,3374.7,3373.9,3.35598]
[1765395937952,6.00444009,3374.6,3369.0,4.1936128]
[1765395938155,4.43546059,3373.3,3372.4,0.14824]
[1765395938454,3.2078,3372.5,3372.1,0.14826]
[1765395938649,4.43546059,3373.1,3372.4,0.14824]
[1765395938849,3.2078,3373.2,3372.6,0.14824]
[1765395939051,3.2078,3373.2,3370.4,3.36874944]
[1765395939052,4.44365017,3373.2,3371.5,3.2078]
[1765395939354,0.0044474,3372.7,3371.5,3.2078]
[1765395939548,0.0044474,3372.7,3372.0,0.14826]
[1765395940057,3.2078,3372.1,3372.0,0.15081026]
[1765395940357,4.43546059,3372.3,3372.0,0.15081026]
[1765395940654,3.2078,3372.2,3372.0,0.00255026]
[1765395940851,4.43546059,3372.3,3372.0,0.00255026]
[1765395941255,3.2078,3372.2,3372.0,0.00255026]
[1765395941650,3.2078,3372.6,3372.1,0.14826]
[1765395941957,4.43546059,3372.4,3372.2,0.14825]
[1765395942254,7.64326059,3372.6,3372.2,0.14825]
[1765395942451,0.0044474,3372.7,3372.3,3.2078]
[1765395942651,0.0044474,3372.7,3372.6,0.14824]
[1765395943047,0.00374218,3373.2,3373.1,0.14821]
[1765395943248,3.2078,3374.0,3373.9,0.14818]
[1765395943649,7.64326059,3374.0,3373.9,0.14818]
[1765395943855,7.64326059,3374.0,3373.0,0.14822]
[1765395944053,3.2078,3373.4,3373.0,0.14822]
[1765395944247,0.0030579,3373.4,3373.2,0.0044474]
[1765395944651,4.43291033,3372.2,3370.3,3.2078]
[1765395944854,4.22319176,3373.3,3370.3,3.2078]
[1765395944855,3.2078,3371.0,3370.3,3.57419176]
[1765395945054,3.2078,3372.2,3371.3,0.14829]
[1765395945256,3.2078,3371.8,3370.5,3.2078]
[1765395945450,7.5,3373.3,3371.4,0.14829]
[1765395945451,3.2078,3372.3,3371.4,0.14829]
[1765395945647,0.0044474,3372.2,3371.4,0.15197804]
[1765395945854,3.2078,3371.8,3371.4,0.15197804]
[1765395946146,3.2122474,3372.2,3371.6,0.14828]
[1765395946352,3.2122474,3372.2,3371.8,0.14827]
[1765395948455,3.2122474,3372.2,3371.5,3.2078]
[1765395948658,0.0044474,3372.2,3372.1,0.14826]
[1765395948859,0.00226454,3372.3,3372.2,0.14825]
[1765395949063,3.2078,3373.2,3372.8,0.14823]
[1765395949358,3.2078,3373.2,3371.4,0.00368804]
[1765395949359,4.43291033,3373.1,3372.1,0.14826]
[1765395949552,3.2078,3372.4,3372.1,0.14826]
[1765395949953,3.21047965,3372.4,3372.2,0.14825]
[1765395950154,3.21047965,3372.4,3372.3,0.14825]
[1765395950352,0.00267965,3372.4,3372.3,0.14825]
[1765395950552,0.0044474,3372.6,3372.5,0.14824]
[1765395950762,3.2078,3373.5,3373.4,0.1482]
[1765395951154,7.64071033,3373.5,3373.4,0.1482]
[1765395951554,4.1097514,3373.5,3373.4,0.1482]
[1765395952664,0.00283932,3373.5,3373.4,6.1482]
[1765395952865,4.1097514,3373.5,3373.4,0.1482]
[1765395953260,4.1097514,3373.5,3372.3,3.2078]
[1765395953464,3.2078,3373.1,3372.3,3.2078]
[1765395954163,3.2078,3373.1,3373.0,0.14822]
[1765395954560,13.31471208,3373.1,3372.2,0.14825]
[1765395954765,4.10691208,3372.0,3371.4,0.00368804]
[1765395954954,4.10691208,3372.0,3370.1,3.2078]
[1765395954955,3.2078,3371.5,3370.3,0.14834]
[1765395955158,3.2078,3370.4,3370.3,0.14834]
[1765395955357,3.2078,3370.6,3370.4,0.14833]
[1765395955563,3.2078,3370.5,3370.4,0.14833]
[1765395955763,3.2078,3370.5,3370.1,0.0044474]
[1765395956061,3.2078,3370.5,3370.1,0.00827423]
[1765395956062,7.31840086,3370.5,3370.1,0.00827423]
[1765395957661,4.11060086,3370.5,3370.1,0.00827423]
[1765395957863,0.0044474,3370.8,3370.5,0.14833]
[1765395958168,0.0044474,3370.8,3370.7,3.35612]
[1765395958370,0.0044474,3370.8,3370.7,0.14832]
[1765395958563,3.79691377,3370.8,3370.7,0.14832]
[1765395958760,7.00471377,3370.8,3370.1,0.00827423]
[1765395958961,3.80019215,3370.8,3370.5,0.14833]
[1765395959770,3.66850433,3370.8,3370.7,0.14832]
[1765395960072,0.00327838,3370.8,3370.7,0.14832]
[1765395960372,3.2078,3372.4,3372.1,0.14826]
[1765395960570,3.66522595,3372.3,3371.2,0.1483]
[1765395960766,3.2078,3371.4,3370.1,0.00382683]
[1765395961072,3.2078,3371.5,3370.4,0.0044474]
[1765395961275,3.2078,3371.1,3370.7,0.14832]
[1765395961474,6.78199176,3371.1,3370.1,0.00382683]
[1765395961668,6.78199176,3371.1,3370.6,0.14832]
[1765395961669,3.2078,3371.1,3370.6,0.14832]
[1765395961870,3.2078,3370.8,3370.1,0.00382683]
[1765395962072,3.2078,3370.4,3370.1,0.00382683]
[1765395962773,3.66522595,3370.2,3369.0,0.14839]
[1765395963077,3.66522595,3370.2,3366.3,3.009]
[1765395963078,3.2078,3369.8,3368.6,3.2078]
[1765395963268,3.2078,3369.8,3369.2,0.14838]
[1765395963468,3.66522595,3369.3,3369.2,0.14838]
[1765395963673,3.66522595,3369.3,3369.2,0.15058375]
[1765395963971,0.00232276,3371.5,3370.3,0.14834]
[1765395963972,3.2078,3370.4,3370.3,0.14834]
[1765395964268,0.00232276,3371.5,3369.2,0.00220375]
[1765395964269,3.2078,3370.9,3370.7,0.14832]
[1765395964473,3.2078,3370.9,3370.8,0.14832]
[1765395964868,0.0044474,3371.2,3371.0,0.1483]
[1765395965073,0.0044474,3371.2,3370.6,0.14832]
[1765395965268,0.0044474,3371.2,3370.5,0.0044474]
[1765395965269,0.0044474,3371.2,3370.8,0.14831]
[1765395965474,0.0044474,3371.2,3370.8,3.2078]
[1765395966069,0.0044474,3371.2,3371.1,0.1483]
[1765395966474,3.66967335,3371.2,3371.1,0.1483]
[1765395966678,3.66967335,3371.2,3370.5,0.0044474]
[1765395966876,3.2078,3370.9,3370.5,0.0044474]
[1765395967381,0.0044474,3371.2,3370.7,3.2078]
[1765395967577,3.66522595,3371.1,3371.0,0.14831]
[1765395969784,3.2078,3371.9,3371.8,0.14827]
[1765395969977,3.2078,3372.4,3371.9,0.14827]
[1765395970281,3.2078,3372.8,3372.0,3.2078]
[1765395970585,3.2078,3372.8,3371.9,0.14826]
[1765395970784,3.2078,3372.8,3372.0,0.0044474]
[1765395970785,0.0044474,3372.7,3372.0,0.0044474]
[1765395970984,3.2078,3372.1,3372.0,0.0044474]
[1765395971478,6.87302595,3372.1,3372.0,0.0044474]
[1765395971683,3.66522595,3372.1,3372.0,0.0044474]
[1765395971881,3.66522595,3372.1,3372.0,0.1527074]
[1765395972689,6.87302595,3372.1,3372.0,0.1527074]
[1765395972884,3.66522595,3372.1,3372.0,0.1527074]
[1765395973690,0.45742595,3371.4,3370.8,0.14831]
[1765395973988,3.2078,3371.3,3370.7,0.14832]
[1765395974182,0.45742595,3371.1,3370.7,0.14832]
[1765395974384,0.45742595,3371.1,3371.0,0.14831]
[1765395974583,0.45742595,3371.1,3371.0,3.21119875]
[1765395974790,1e-08,3371.4,3371.3,0.14829]
[1765395974985,0.45742596,3371.4,3371.3,0.14829]
[1765395975685,1e-08,3371.4,3371.3,0.14829]
[1765395975879,3.2078,3372.5,3372.4,0.14824]
[1765395976082,0.00330356,3372.8,3372.7,0.14823]
[1765395976288,0.00330356,3372.8,3372.7,3.35603]
[1765395976487,0.00330356,3372.8,3372.7,0.14823]
[1765395977182,0.00330356,3372.8,3372.4,0.0044474]
[1765395977692,3.2078,3372.5,3372.4,0.0044474]
[1765395978188,0.00330356,3372.8,3372.7,0.14823]
[1765395979990,0.0044474,3373.1,3373.0,0.14822]
[1765395980188,0.0044474,3373.1,3373.0,3.35602]
[1765395980387,0.0044474,3373.1,3373.0,0.14822]
[1765395981097,0.00742661,3373.1,3373.0,0.14822]
[1765395981585,6.00742661,3373.1,3372.4,0.0044474]
[1765395981785,3.2078,3372.5,3371.3,3.2078]
[1765395981986,3.2078,3371.8,3371.7,0.14827]
[1765395982289,3.2078,3371.8,3370.6,3.2078]
[1765395982487,3.2078,3371.4,3371.1,0.1483]
[1765395982687,3.2078,3371.4,3371.3,0.14829]
[1765395983583,3.2078,3372.2,3371.3,6.0]
[1765395983790,3.2078,3372.7,3372.2,0.14825]
[1765395984087,3.2078,3372.7,3371.8,3.2078]
[1765395984288,3.2078,3372.7,3372.6,0.14824]
[1765395984492,0.00742661,3373.1,3373.0,0.14822]
[1765395986691,6.00742661,3373.1,3372.7,0.0044474]
[1765395986997,0.00742661,3373.1,3372.8,0.14822]
[1765395987193,0.00742661,3373.1,3372.9,0.14822]
[1765395987993,6.00742661,3373.1,3372.7,0.0044474]
[1765395988296,3.2078,3372.8,3372.7,0.0044474]
[1765395988692,3.2078,3372.8,3372.7,0.1526774]
[1765395989096,9.2078,3372.8,3370.8,3.2078]
[1765395989399,3.2078,3372.0,3371.7,0.14828]
[1765395989695,3.2078,3372.0,3370.5,3.20808903]
[1765395989696,3.2078,3372.0,3371.8,0.14827]
[1765395990096,3.2078,3372.0,3371.9,0.14827]
[1765395990693,3.2078,3372.0,3370.9,3.2078]
[1765395990901,3.2078,3371.6,3370.9,3.2078]
[1765395991091,3.2078,3372.0,3371.9,0.14826]
[1765395991487,3.2078,3372.5,3371.7,2.95809948]
[1765395991794,3.2078,3372.5,3372.4,0.14825]
[1765395993993,3.2078,3372.9,3372.8,0.14822]
[1765395994592,0.00742661,3373.1,3373.0,0.14822]
[1765395995095,0.00742661,3373.1,3371.5,3.2078]
[1765395995395,3.2078,3372.8,3372.7,0.14823]
[1765395996001,3.2078,3372.8,3372.0,0.14826]
[1765395996300,3.2078,3372.1,3372.0,0.14826]
[1765395996596,3.2078,3372.5,3371.4,9.97728343]
[1765395996796,0.00742661,3373.1,3371.4,9.97728343]
[1765395996797,3.2078,3372.1,3371.4,3.2078]
[1765395996991,3.2078,3372.5,3372.2,0.14825]
[1765395997191,3.2078,3372.3,3372.2,0.14825]
[1765395998092,3.2078,3372.3,3371.7,0.14827]
[1765395998296,3.2078,3372.5,3371.4,3.2078]
[1765395998497,3.2078,3372.5,3372.4,0.14825]
[1765395998903,0.00742661,3373.1,3373.0,0.14822]
[1765395999401,0.00297922,3373.1,3373.0,0.14822]
[1765395999697,3.2078,3373.8,3373.7,0.14819]
[1765395999905,3.2078,3374.2,3374.1,0.14817]
[1765396000495,3.2103159,3374.2,3374.1,0.15061134]
[1765396001498,0.0025159,3374.2,3374.1,0.15061134]
[1765396001799,0.0044474,3374.5,3374.4,0.14816]
[1765396002804,0.00676047,3374.5,3374.4,0.14816]
[1765396004801,0.00676047,3374.5,3374.4,3.35596]
[1765396005300,0.00676047,3374.5,3374.4,0.14816]
[1765396007605,4.7e-07,3374.5,3374.4,0.14816]
[1765396007908,3.2078,3376.3,3374.5,6.0]
[1765396008097,3.2078,3377.0,3376.8,0.14805]
[1765396008513,3.2078,3377.4,3376.6,3.2078]
[1765396008809,3.2078,3377.0,3376.7,0.0044474]
[1765396009410,3.2078,3377.0,3376.6,0.00251817]
[1765396009707,9.2078,3377.0,3376.0,0.14808]
[1765396009908,3.2078,3376.6,3375.5,3.2078]
[1765396010109,3.2078,3376.6,3376.2,0.14808]
[1765396010409,3.2078,3376.7,3376.2,0.14808]
[1765396010609,3.2078,3376.7,3376.2,0.15058305]
[1765396010906,0.0044474,3377.3,3376.2,0.15058305]
[1765396011097,3.2078,3376.7,3376.2,0.15058305]
[1765396011297,3.2078,3376.7,3376.2,0.00250305]
[1765396011500,3.2078,3377.1,3377.0,0.14804]
[1765396011805,3.2078,3377.1,3376.2,0.00250305]
[1765396012000,3.2078,3376.3,3376.1,0.0044474]
[1765396012200,3.2078,3376.3,3375.4,0.14811]
[1765396012419,3.2078,3375.9,3375.4,0.14811]
[1765396012997,3.2078,3375.9,3375.4,0.15119256]
[1765396013908,3.2078,3375.5,3373.8,3.2078]
[1765396014105,3.2078,3374.6,3374.5,0.14815]
[1765396014305,3.2122474,3375.0,3374.2,3.2078]
[1765396014608,3.2078,3374.6,3373.8,3.2078]
[1765396014910,3.21027767,3374.6,3374.2,0.14816]
[1765396015207,3.2078,3375.9,3374.5,6.16589948]
[1765396015412,3.2078,3376.7,3375.3,0.14812]
[1765396015602,3.2078,3375.9,3375.3,0.14812]
[1765396015906,7.5,3376.6,3375.3,0.14812]
[1765396015907,3.2078,3375.5,3375.3,0.14812]
[1765396016108,3.2078,3375.5,3375.4,0.14811]
[1765396016310,3.21135207,3375.5,3375.4,0.14811]
[1765396016712,0.00355207,3375.5,3375.4,0.14811]
[1765396017611,0.00355207,3375.5,3375.1,4.74e-05]
[1765396017612,6.00355207,3375.5,3375.1,4.74e-05]
[1765396017802,3.2078,3375.3,3374.6,0.14815]
[1765396018006,3.2078,3374.9,3374.1,3.2078]
[1765396018202,3.2078,3374.5,3373.9,0.14818]
[1765396018402,3.2078,3374.1,3371.3,11.334]
[1765396018602,2.95809948,3373.4,3371.5,3.07938425]
[1765396018806,3.2078,3372.3,3371.5,0.14828]
[1765396019116,0.0044474,3372.8,3371.6,0.14828]
[1765396019412,3.21435898,3372.8,3372.6,0.14824]
[1765396019715,0.00655898,3372.8,3372.6,0.14824]
[1765396020406,0.00655898,3372.8,3372.7,3.35603]
[1765396020715,3.2078,3373.8,3373.5,0.1482]
[1765396021109,3.2078,3374.2,3373.5,0.1482]
[1765396021511,0.00747563,3374.2,3373.6,3.2078]
[1765396021714,0.00747563,3374.2,3374.1,0.14817]
[1765396021912,3.2078,3374.7,3374.6,0.14815]
[1765396022214,3.2078,3374.7,3373.5,0.0044474]
[1765396022410,3.2078,3373.9,3372.9,0.14822]
[1765396022610,3.2078,3373.4,3372.9,0.14822]
[1765396022907,3.2078,3373.3,3373.2,0.14821]
[1765396023209,9.2078,3373.3,3372.0,3.2078]
[1765396023411,3.10632948,3372.8,3372.3,0.0044474]
[1765396023610,2.95809948,3372.2,3369.4,0.14838]
[1765396023812,2.95809948,3371.4,3368.5,0.25228184]
[1765396024019,2.95809948,3371.4,3368.5,0.00309727]
[1765396024212,2.95809948,3372.0,3369.8,0.14836]
[1765396024407,0.05162094,3373.3,3368.9,2.95809948]
[1765396024408,2.95809948,3372.1,3368.9,2.95809948]
[1765396024712,0.0044474,3370.6,3368.9,2.95809948]
[1765396025016,0.00696275,3370.6,3370.5,0.14833]
[1765396025314,2.95809948,3372.7,3370.8,0.14831]
[1765396025513,2.968,3374.5,3368.6,3.43375726]
[1765396025514,0.2522383,3374.4,3368.6,3.43375726]
[1765396025720,0.14827,3371.9,3369.8,0.14836]
[1765396026016,2.95809948,3372.1,3369.8,0.14836]
[1765396026017,3.2078,3370.3,3369.8,0.14836]
[1765396026218,0.0044474,3371.2,3370.4,0.14833]
[1765396026416,3.2078,3371.3,3371.2,0.1483]
[1765396026618,3.2078,3371.8,3371.2,0.15154734]
[1765396026817,3.2078,3371.4,3371.2,0.15154734]
[1765396027214,3.2078,3371.4,3370.3,0.14834]
[1765396027417,3.2078,3370.5,3369.7,0.1528074]
[1765396027622,3.2078,3370.5,3369.8,3.35616]
[1765396027920,3.2078,3370.5,3369.9,0.14835]
[1765396028318,3.2078,3371.0,3370.6,0.14832]
[1765396028518,0.0024237,3371.9,3371.8,0.14827]
[1765396028709,3.2078,3373.0,3372.4,0.14824]
[1765396028916,7.5,3374.3,3373.0,0.14822]
[1765396029517,0.0044474,3374.0,3373.3,0.0044474]
[1765396029723,0.00815963,3374.0,3373.3,0.00727135]
[1765396031217,3.2078,3373.6,3373.5,0.1482]
[1765396031418,0.00815963,3374.0,3373.3,0.00727135]
[1765396031615,0.00815963,3374.0,3373.9,0.14818]
[1765396031820,3.2078,3375.0,3374.4,0.14816]
[1765396032021,3.2078,3374.6,3373.4,3.2078]
[1765396032223,3.2078,3374.6,3374.0,0.14817]
[1765396032617,3.2078,3374.8,3374.3,0.14816]
[1765396032818,3.21027099,3374.8,3374.3,0.14816]
[1765396033019,0.00247099,3374.8,3374.3,0.14816]
[1765396033422,0.00247099,3374.8,3374.5,0.14815]
[1765396033624,0.00247099,3374.8,3374.6,0.14815]
[1765396034126,0.00247099,3374.8,3374.7,0.14814]
[1765396034623,9.21027099,3374.8,3374.2,0.0044474]
[1765396034827,3.2078,3374.3,3374.2,0.0044474]
[1765396035423,3.2078,3374.7,3374.2,0.0044474]
[1765396036329,3.2078,3374.5,3373.7,3.2078]
[1765396036523,3.2078,3374.0,3373.4,0.1482]
[1765396036830,3.2078,3374.1,3373.4,0.1482]
[1765396037222,0.00247099,3374.8,3373.3,0.00282395]
[1765396037223,3.2078,3374.3,3373.3,0.00282395]
[1765396037423,3.21027099,3374.8,3373.9,0.14818]
[1765396037927,3.21027099,3374.8,3374.2,3.2078]
[1765396038133,0.00247099,3374.8,3373.9,3.2078]
[1765396038625,0.00247099,3374.8,3374.4,3.35596]
[1765396038827,0.00247099,3374.8,3374.4,0.14816]
[1765396039432,0.00247099,3374.8,3373.9,3.2078]
[1765396039637,0.00247099,3374.8,3373.9,3.35598]
[1765396040130,3.2078,3374.6,3373.5,0.0044474]
[1765396040432,3.2078,3373.8,3373.5,0.0044474]
[1765396040621,3.2078,3374.2,3373.5,0.0044474]
[1765396040828,3.2078,3373.6,3373.3,2.395e-05]
[1765396041026,3.2078,3373.6,3373.0,3.2078]
[1765396041222,0.14817,3374.1,3373.0,3.2078]
[1765396041424,0.00247099,3374.8,3373.8,3.2078]
[1765396041632,0.00247099,3374.8,3374.2,3.2078]
[1765396041823,0.00691839,3374.8,3374.2,3.2122474]
[1765396042135,0.00691839,3374.8,3374.2,3.21452221]
[1765396042436,0.00691839,3374.8,3374.7,0.14814]
[1765396043127,0.00691839,3374.8,3374.2,0.00672221]
[1765396044232,0.00691839,3374.8,3374.5,0.14815]
[1765396044431,3.2078,3373.7,3370.6,3.2078]
[1765396044732,3.2078,3372.3,3371.8,0.14827]
[1765396044933,3.2078,3371.9,3371.8,0.14827]
[1765396045228,3.2078,3371.9,3371.0,0.14831]
[1765396045434,3.2078,3371.4,3371.1,0.1527474]
[1765396045830,3.2078,3371.4,3371.2,0.1483]
[1765396046336,0.0044474,3371.8,3371.7,0.14828]
[1765396046533,4.74e-05,3371.8,3371.7,0.14828]
[1765396046729,4.74e-05,3371.8,3371.1,0.0044474]
[1765396046730,3.2078474,3371.8,3371.1,0.0044474]
[1765396046937,3.2078,3371.4,3371.1,0.0044474]
[1765396050834,3.2078,3371.4,3371.3,0.14829]
[1765396051230,4.74e-05,3371.8,3371.4,0.14829]
[1765396051734,4.74e-05,3371.8,3371.7,0.14828]
[1765396053132,3.2078,3372.4,3372.0,0.14826]
[1765396053338,3.2078,3372.8,3372.7,0.14823]
[1765396053539,3.2078,3373.2,3372.4,3.2078]
[1765396054144,0.0044474,3373.1,3372.5,0.0044474]
[1765396054740,3.2078,3373.0,3372.5,0.0044474]
[1765396055141,3.2078,3372.6,3372.5,0.0044474]
[1765396057429,3.2078,3372.6,3372.5,0.1526874]
[1765396058134,3.2078,3372.6,3372.5,0.0044474]
[1765396058934,9.2078,3372.6,3371.0,0.1519074]
[1765396059139,3.2078,3371.5,3371.1,0.1483]
[1765396059338,3.2078,3371.5,3371.0,0.0036074]
[1765396059635,3.2078,3371.1,3370.3,0.14834]
[1765396059842,3.2078,3370.7,3370.3,0.14834]
[1765396060235,3.2078,3370.7,3370.2,0.0044474]
[1765396060537,3.21052096,3370.7,3370.2,0.00721151]
[1765396060746,3.21052096,3370.7,3370.6,0.14832]
[1765396063941,2.8830141,3370.7,3370.6,0.14832]
[1765396064141,0.0044474,3370.8,3370.7,0.14832]
[1765396065037,0.0044474,3370.8,3370.2,0.00721151]
[1765396065038,0.00710781,3370.8,3370.2,0.00721151]
[1765396065243,3.21490781,3370.8,3370.4,0.14833]
[1765396065932,3.21490781,3370.8,3370.5,0.14833]
[1765396067743,3.21490781,3370.8,3370.2,0.00721151]
[1765396068044,3.2078,3370.7,3370.3,0.14834]
[1765396068342,3.2078,3370.7,3370.5,0.14833]
[1765396068745,3.2078,3370.7,3370.6,0.14832]
[1765396069040,3.2078,3370.7,3370.2,0.00721151]
[1765396069241,3.2078,3370.3,3370.2,0.00721151]
[1765396070134,3.2078,3370.3,3370.0,0.14835]
[1765396070837,3.21490781,3370.8,3370.6,0.14832]
[1765396071139,3.21490781,3370.8,3370.7,0.14832]
[1765396071346,0.00710781,3370.8,3370.7,0.14832]